bitfinex/quotes_SOLUSD_20230110
["timestamp","ask_amount","ask_price","bid_price","bid_amount"]
[1673383286209,37.0,16.375,16.363,111.4961]
[1673383286526,45.83,16.374,16.363,111.4961]
[1673383286741,17.0,16.373,16.363,111.4961]
[1673383289157,62.83,16.374,16.363,111.4961]
[1673383289562,17.0,16.374,16.363,111.4961]
[1673383290633,17.0,16.374,16.364,13.3092162]
[1673383293679,45.83,16.373,16.364,13.3092162]
[1673383293993,20.0,16.371,16.357,13.3092162]
[1673383294420,17.0,16.37,16.357,13.3092162]
[1673383295030,45.84,16.369,16.357,13.3092162]
[1673383295256,17.0,16.368,16.357,13.3092162]
[1673383296100,20.0,16.368,16.357,13.3092162]
[1673383296288,62.85,16.367,16.354,17.6820384]
[1673383296705,62.85,16.367,16.355,13.3092162]
[1673383297864,62.85,16.367,16.356,20.0]
[1673383298295,62.85,16.367,16.357,13.3092162]
[1673383298819,17.0,16.367,16.357,13.3092162]
[1673383299451,62.85,16.367,16.357,13.3092162]
[1673383300826,17.0,16.367,16.357,13.3092162]
[1673383304487,45.84,16.37,16.357,13.3092162]
[1673383304693,20.0,16.371,16.357,13.3092162]
[1673383304913,20.0,16.371,16.358,19.16]
[1673383304914,45.84,16.37,16.358,19.16]
[1673383305446,65.83,16.371,16.359,13.3092162]
[1673383306393,20.0,16.369,16.355,21.63]
[1673383306584,20.0,16.369,16.354,6.0920384]
[1673383306585,62.84,16.368,16.354,6.0920384]
[1673383306921,20.0,16.367,16.354,6.0920384]
[1673383307120,62.85,16.366,16.354,6.0920384]
[1673383309526,17.0,16.366,16.355,20.0]
[1673383309742,17.0,16.367,16.355,20.0]
[1673383309958,45.85,16.366,16.355,20.0]
[1673383310162,17.0,16.365,16.355,20.0]
[1673383313325,17.0,16.365,16.354,26.0920384]
[1673383313850,20.0,16.367,16.354,26.0920384]
[1673383313851,62.85,16.366,16.354,26.0920384]
[1673383317623,17.0,16.366,16.354,26.0920384]
[1673383317834,37.0,16.367,16.354,26.0920384]
[1673383318044,45.85,16.366,16.354,26.0920384]
[1673383318268,17.0,16.365,16.354,26.0920384]
[1673383318679,45.85,16.366,16.354,26.0920384]
[1673383318887,45.84,16.368,16.354,26.0920384]
[1673383319853,17.0,16.367,16.354,26.0920384]
[1673383322681,45.84,16.368,16.355,17.0]
[1673383323009,45.84,16.369,16.356,33.3092162]
[1673383323221,65.84,16.37,16.356,33.3092162]
[1673383323406,65.84,16.37,16.357,13.3092162]
[1673383323616,65.84,16.37,16.356,20.0]
[1673383323936,45.84,16.37,16.36,25.36]
[1673383324144,45.83,16.371,16.36,25.36]
[1673383324350,65.83,16.372,16.36,25.36]
[1673383324565,20.0,16.372,16.361,20.0]
[1673383324885,20.0,16.373,16.36,38.6692162]
[1673383326480,20.0,16.371,16.357,167.16024635]
[1673383326792,62.84,16.37,16.357,167.16024635]
[1673383328050,62.84,16.37,16.357,118.6941]
[1673383329202,62.84,16.37,16.358,20.0]
[1673383329437,17.0,16.37,16.358,20.0]
[1673383329654,62.84,16.37,16.358,20.0]
[1673383329846,62.84,16.37,16.357,132.0033162]
[1673383330999,17.0,16.37,16.358,20.0]
[1673383332995,17.0,16.37,16.357,132.0033162]
[1673383333539,17.0,16.37,16.358,20.0]
[1673383334489,112.317,16.371,16.358,20.0]
[1673383334676,112.317,16.371,16.36,25.36]
[1673383334889,112.317,16.371,16.361,20.0]
[1673383335219,112.317,16.371,16.361,33.3092162]
[1673383335409,45.83,16.374,16.361,33.3092162]
[1673383335621,45.82,16.375,16.362,50.3092162]
[1673383335844,65.82,16.377,16.363,12.31]
[1673383336059,65.82,16.377,16.364,20.0]
[1673383336789,65.82,16.377,16.363,121.4698]
[1673383337007,65.82,16.377,16.364,20.0]
[1673383337195,20.0,16.377,16.364,20.0]
[1673383337533,20.0,16.377,16.364,33.3092162]
[1673383338456,20.0,16.377,16.365,17.0]
[1673383338788,65.81,16.378,16.365,30.3092162]
[1673383339002,20.0,16.378,16.365,90.78536255]
[1673383339194,155.9671,16.38,16.365,90.78536255]
[1673383339397,155.9671,16.38,16.366,20.0]
[1673383339616,155.9671,16.38,16.367,17.0]
[1673383339827,155.9671,16.38,16.365,90.78536255]
[1673383340133,155.9671,16.38,16.366,20.0]
[1673383340990,155.9671,16.38,16.366,33.3092162]
[1673383341200,110.1571,16.38,16.367,12.0]
[1673383342055,110.1571,16.38,16.368,0.89931131]
[1673383342364,110.1571,16.38,16.367,12.0]
[1673383344677,110.1571,16.38,16.368,0.83028448]
[1673383344869,155.9671,16.38,16.368,0.83028448]
[1673383345812,155.9671,16.38,16.367,0.86578239]
[1673383347072,155.9671,16.38,16.366,0.86777581]
[1673383347283,155.9671,16.38,16.366,20.86777581]
[1673383348443,155.9671,16.38,16.367,17.0]
[1673383348657,155.9671,16.38,16.367,44.5]
[1673383349196,155.9671,16.38,16.368,0.86999048]
[1673383349510,110.1571,16.38,16.367,30.3092162]
[1673383349715,110.1571,16.38,16.368,30.05]
[1673383349912,45.8,16.382,16.369,17.0]
[1673383350130,65.8,16.383,16.37,1.03728333]
[1673383350339,20.0,16.382,16.37,26.39728333]
[1673383352042,17.0,16.381,16.37,26.39728333]
[1673383352891,17.0,16.381,16.37,39.70649953]
[1673383353201,17.0,16.381,16.37,26.39728333]
[1673383354128,65.8,16.383,16.371,20.0]
[1673383354339,20.0,16.384,16.372,18.21677773]
[1673383354548,20.0,16.384,16.373,20.0]
[1673383354864,20.0,16.384,16.374,1.25088227]
[1673383355187,65.79,16.385,16.374,14.56009847]
[1673383355401,65.79,16.385,16.375,17.0]
[1673383355402,20.0,16.385,16.375,17.0]
[1673383355615,65.79,16.387,16.376,1.29989018]
[1673383356145,65.79,16.387,16.376,21.29989018]
[1673383356339,20.0,16.387,16.376,14.60910638]
[1673383356558,65.79,16.387,16.376,1.29989018]
[1673383356765,65.79,16.387,16.375,1.29989018]
[1673383357185,65.79,16.387,16.374,1.29989018]
[1673383357385,17.0,16.386,16.374,1.29989018]
[1673383359506,65.79,16.387,16.374,1.29989018]
[1673383359700,65.79,16.387,16.374,18.29989018]
[1673383361065,65.79,16.387,16.374,31.60910638]
[1673383366447,45.79,16.387,16.374,31.60910638]
[1673383366640,111.4046,16.389,16.375,65.82]
[1673383366964,111.4046,16.389,16.376,18.3132511]
[1673383367172,65.6246,16.389,16.376,31.6224673]
[1673383367370,65.6246,16.389,16.377,33.3092162]
[1673383367709,65.6246,16.389,16.378,17.0]
[1673383371807,20.0,16.388,16.378,17.0]
[1673383372227,65.79,16.388,16.376,1.3132511]
[1673383373068,17.0,16.387,16.376,1.3132511]
[1673383373255,45.79,16.386,16.376,1.3132511]
[1673383374755,20.0,16.384,16.372,20.0]
[1673383374966,20.0,16.382,16.368,110.9859]
[1673383375175,45.81,16.381,16.368,110.9859]
[1673383376033,45.81,16.381,16.369,17.0]
[1673383380139,45.81,16.381,16.37,20.0]
[1673383380337,45.79,16.387,16.371,62.83]
[1673383380549,45.79,16.387,16.372,20.0]
[1673383380752,45.79,16.387,16.373,82.83]
[1673383381188,45.79,16.387,16.374,0.83747551]
[1673383381382,45.79,16.387,16.374,48.15182186]
[1673383381711,45.79,16.387,16.375,17.0]
[1673383381926,45.79,16.387,16.376,20.0]
[1673383382115,65.6246,16.389,16.377,17.0]
[1673383382528,20.0,16.388,16.377,17.0]
[1673383383603,20.0,16.388,16.377,13.3092162]
[1673383383818,20.0,16.388,16.378,17.0]
[1673383384975,20.0,16.388,16.377,13.3092162]
[1673383388315,65.79,16.388,16.377,13.3092162]
[1673383388961,65.79,16.388,16.378,17.0]
[1673383389170,20.0,16.388,16.378,17.0]
[1673383389374,20.0,16.388,16.378,30.3092162]
[1673383390130,65.78,16.391,16.38,25.28]
[1673383390314,20.0,16.392,16.381,37.0]
[1673383390517,20.0,16.392,16.381,50.3092162]
[1673383390725,20.0,16.392,16.382,13.3092162]
[1673383390950,20.0,16.392,16.383,20.0]
[1673383391377,20.0,16.393,16.383,20.0]
[1673383394321,20.0,16.393,16.381,62.81]
[1673383394322,20.0,16.392,16.373,45.83]
[1673383394540,45.78,16.391,16.372,45.83]
[1673383394733,20.0,16.389,16.373,33.03123064]
[1673383394944,62.79,16.388,16.373,33.03123064]
[1673383395386,20.0,16.387,16.373,33.03123064]
[1673383395572,62.79,16.386,16.374,13.03123064]
[1673383397375,45.79,16.386,16.375,17.0]
[1673383397778,45.79,16.386,16.375,30.03123064]
[1673383399165,17.0,16.385,16.375,13.03123064]
[1673383399361,17.0,16.386,16.375,13.03123064]
[1673383399569,20.0,16.385,16.371,264.1505]
[1673383399900,20.0,16.385,16.373,13.03123064]
[1673383401350,17.0,16.384,16.373,13.03123064]
[1673383401566,17.0,16.384,16.371,264.1505]
[1673383401791,45.8,16.383,16.372,33.03123064]
[1673383402107,17.0,16.382,16.372,33.03123064]
[1673383402719,17.0,16.383,16.372,33.03123064]
[1673383402927,45.8,16.382,16.372,33.03123064]
[1673383407472,45.8,16.382,16.372,20.0]
[1673383407786,45.8,16.382,16.373,20.0]
[1673383407787,37.0,16.381,16.373,20.0]
[1673383407980,37.0,16.381,16.371,20.0]
[1673383408740,37.0,16.381,16.368,20.0]
[1673383408953,37.0,16.381,16.367,45.85]
[1673383409574,20.0,16.379,16.367,45.85]
[1673383411690,111.8334,16.38,16.368,13.03123064]
[1673383411902,20.0,16.385,16.368,13.03123064]
[1673383411903,20.0,16.385,16.371,20.0]
[1673383412122,20.0,16.385,16.372,59.59]
[1673383412304,20.0,16.385,16.372,54.62123064]
[1673383412513,20.0,16.385,16.372,13.03123064]
[1673383412844,20.0,16.385,16.373,33.03123064]
[1673383413386,17.0,16.383,16.373,33.03123064]
[1673383414108,20.0,16.385,16.373,33.03123064]
[1673383414546,17.0,16.383,16.373,33.03123064]
[1673383418553,20.0,16.385,16.373,33.03123064]
[1673383418763,20.0,16.385,16.374,17.0]
[1673383418955,65.79,16.388,16.374,55.8]
[1673383419286,20.0,16.388,16.375,13.03123064]
[1673383419478,20.0,16.388,16.376,55.8]
[1673383419897,20.0,16.388,16.377,13.03123064]
[1673383420112,20.0,16.388,16.378,55.79]
[1673383420524,138.9384,16.389,16.379,13.03123064]
[1673383420734,20.0,16.389,16.38,42.42]
[1673383420950,20.0,16.391,16.38,42.42]
[1673383421173,20.0,16.391,16.381,72.98123064]
[1673383421375,20.0,16.391,16.382,17.0]
[1673383421596,20.0,16.391,16.383,20.0]
[1673383421804,20.0,16.391,16.383,33.03123064]
[1673383423280,20.0,16.391,16.383,20.0]
[1673383423482,20.0,16.391,16.38,134.6048]
[1673383423483,17.0,16.39,16.38,134.6048]
[1673383423694,62.78,16.39,16.38,25.42]
[1673383423913,20.0,16.389,16.38,25.42]
[1673383426119,20.0,16.389,16.378,13.03123064]
[1673383426326,20.0,16.387,16.375,113.3872]
[1673383426530,20.0,16.387,16.376,13.03123064]
[1673383431803,17.0,16.386,16.376,13.03123064]
[1673383435902,17.0,16.386,16.372,34.91]
[1673383436217,20.0,16.384,16.373,20.0]
[1673383436412,82.8,16.383,16.369,35.63]
[1673383436616,20.0,16.382,16.364,145.4068]
[1673383436829,62.81,16.381,16.367,13.00469024]
[1673383437258,20.0,16.38,16.367,13.00469024]
[1673383437467,62.81,16.379,16.367,13.00469024]
[1673383437791,20.0,16.378,16.364,145.4068]
[1673383437997,17.0,16.377,16.364,110.3568]
[1673383441044,17.0,16.377,16.365,13.00469024]
[1673383444514,62.82,16.377,16.365,13.00469024]
[1673383444925,20.0,16.376,16.365,44.50469024]
[1673383445248,20.0,16.376,16.366,13.30836271]
[1673383446305,23.6722,16.376,16.366,13.30836271]
[1673383448069,3.6722,16.376,16.366,13.30836271]
[1673383448297,3.6722,16.376,16.367,51.98]
[1673383448723,3.6722,16.376,16.368,13.30836271]
[1673383448931,0.0002,16.376,16.371,20.0]
[1673383449132,0.0002,16.376,16.372,71.69]
[1673383449350,20.0,16.385,16.372,84.99836271]
[1673383449570,20.0,16.385,16.373,13.30836271]
[1673383455448,20.0,16.385,16.372,71.69]
[1673383455664,20.0,16.385,16.373,13.30836271]
[1673383455860,20.0,16.385,16.373,47.63836271]
[1673383456387,65.79,16.385,16.373,47.63836271]
[1673383456600,20.0,16.385,16.373,13.30836271]
[1673383459534,17.0,16.383,16.372,20.0]
[1673383460391,45.8,16.382,16.372,20.0]
[1673383460715,17.0,16.381,16.372,20.0]
[1673383461125,45.8,16.383,16.372,20.0]
[1673383461335,17.0,16.382,16.372,20.0]
[1673383463974,20.0,16.381,16.367,35.78]
[1673383464187,20.0,16.379,16.365,13.30836271]
[1673383464390,62.81,16.378,16.365,13.30836271]
[1673383464930,20.0,16.377,16.365,13.30836271]
[1673383465121,17.0,16.376,16.365,13.30836271]
[1673383466067,17.0,16.376,16.363,163.6867]
[1673383466495,17.0,16.376,16.364,13.30836271]
[1673383467532,17.0,16.376,16.363,143.6867]
[1673383467846,20.0,16.374,16.363,143.6867]
[1673383468199,17.0,16.373,16.363,114.2067]
[1673383468707,17.0,16.373,16.363,127.51506271]
[1673383470577,17.0,16.373,16.361,31.03]
[1673383470791,17.0,16.373,16.362,20.0]
[1673383470792,20.0,16.372,16.362,20.0]
[1673383471012,17.0,16.371,16.362,20.0]
[1673383471421,17.0,16.371,16.36,20.0]
[1673383473419,17.0,16.371,16.361,36.61836271]
[1673383473628,17.0,16.372,16.362,20.0]
[1673383473853,17.0,16.373,16.362,33.30836271]
[1673383474062,17.0,16.373,16.363,13.30836271]
[1673383475101,17.0,16.373,16.36,25.28]
[1673383475102,65.83,16.372,16.36,25.28]
[1673383475316,17.0,16.371,16.359,23.53]
[1673383475531,37.0,16.371,16.358,124.51976271]
[1673383475757,20.0,16.37,16.358,124.51976271]
[1673383475955,17.0,16.369,16.358,124.51976271]
[1673383478167,17.0,16.369,16.359,17.07]
[1673383478693,17.0,16.37,16.36,20.0]
[1673383479647,17.0,16.37,16.36,33.30836271]
[1673383479839,45.81,16.378,16.361,17.66]
[1673383480052,45.81,16.378,16.363,20.0]
[1673383480382,45.81,16.378,16.364,18.36]
[1673383480599,45.81,16.378,16.364,44.97672542]
[1673383480907,45.81,16.378,16.364,18.36]
[1673383481121,45.81,16.378,16.365,13.30836271]
[1673383481523,65.81,16.379,16.365,13.30836271]
[1673383482906,17.0,16.376,16.365,13.30836271]
[1673383484470,17.0,16.376,16.365,20.0]
[1673383484693,17.0,16.376,16.365,33.30836271]
[1673383485309,65.81,16.379,16.366,41.15]
[1673383485522,17.0,16.378,16.366,41.15]
[1673383485733,17.0,16.378,16.367,13.30836271]
[1673383486160,20.0,16.379,16.367,13.30836271]
[1673383486370,17.0,16.378,16.367,13.30836271]
[1673383486591,17.0,16.378,16.368,25.16]
[1673383486792,17.0,16.378,16.365,25.17]
[1673383487218,20.0,16.377,16.365,25.17]
[1673383487431,17.0,16.376,16.365,25.17]
[1673383489949,17.0,16.376,16.365,24.67]
[1673383490812,17.0,16.376,16.366,13.30836271]
[1673383491950,17.0,16.376,16.367,31.93]
[1673383492162,17.0,16.376,16.366,13.30836271]
[1673383497321,17.0,16.376,16.364,112.7492]
[1673383497731,17.0,16.376,16.364,126.05756271]
[1673383500158,17.0,16.376,16.364,112.7492]
[1673383500685,17.0,16.376,16.361,23.69]
[1673383500686,20.0,16.375,16.361,23.69]
[1673383500882,20.0,16.375,16.36,25.49]
[1673383500883,62.83,16.374,16.362,20.0]
[1673383501082,20.0,16.373,16.362,20.0]
[1673383501292,17.0,16.372,16.362,20.0]
[1673383501518,17.0,16.372,16.361,20.0]
[1673383502190,17.0,16.372,16.36,20.0]
[1673383502791,17.0,16.372,16.361,13.30836271]
[1673383503223,17.0,16.372,16.362,20.0]
[1673383503439,17.0,16.372,16.362,19.5]
[1673383503761,17.0,16.372,16.363,13.30836271]
[1673383504815,1.67393,29.62,16.363,37.29836271]
[1673383504816,178.2233,16.38,16.363,37.29836271]
[1673383505015,178.2233,16.38,16.365,20.0]
[1673383505325,178.2233,16.38,16.366,37.29836271]
[1673383505541,132.4133,16.38,16.366,37.29836271]
[1673383505753,132.4133,16.38,16.367,13.30836271]
[1673383506592,17.0,16.377,16.365,24.23]
[1673383506796,17.0,16.377,16.366,13.30836271]
[1673383507018,17.0,16.377,16.367,26.14]
[1673383509751,17.0,16.377,16.367,39.44836271]
[1673383509956,17.0,16.377,16.367,13.30836271]
[1673383510478,132.4133,16.38,16.365,27.75]
[1673383510795,132.4133,16.38,16.366,30.30836271]
[1673383511109,132.4133,16.38,16.366,13.30836271]
[1673383511847,17.0,16.377,16.366,13.30836271]
[1673383512677,17.0,16.377,16.364,111.7725]
[1673383512876,45.82,16.376,16.364,111.7725]
[1673383513093,20.0,16.374,16.364,111.7725]
[1673383513625,17.0,16.373,16.364,111.7725]
[1673383514036,20.0,16.376,16.364,111.7725]
[1673383514239,20.0,16.376,16.365,42.9]
[1673383514678,20.0,16.376,16.366,13.30836271]
[1673383514891,20.0,16.376,16.367,25.47]
[1673383515185,20.0,16.376,16.367,38.77836271]
[1673383515406,20.0,16.376,16.367,13.30836271]
[1673383516559,20.0,16.379,16.368,28.6]
[1673383516884,20.0,16.379,16.369,13.30836271]
[1673383518586,20.0,16.379,16.366,29.17]
[1673383518790,20.0,16.379,16.367,30.30836271]
[1673383519008,20.0,16.379,16.368,32.46]
[1673383519202,20.0,16.379,16.368,45.76836271]
[1673383519418,20.0,16.379,16.369,13.30836271]
[1673383525533,20.0,16.379,16.37,25.36]
[1673383525830,20.0,16.381,16.371,81.16]
[1673383526050,20.0,16.382,16.371,94.46836271]
[1673383526252,20.0,16.383,16.371,81.16]
[1673383526571,20.0,16.385,16.371,156.76321002]
[1673383526765,20.0,16.385,16.372,13.30836271]
[1673383526975,20.0,16.385,16.373,79.55]
[1673383527178,63.3901,16.389,16.373,79.55]
[1673383527397,45.78,16.392,16.38,25.28]
[1673383527610,20.0,16.394,16.381,62.78]
[1673383527822,20.0,16.394,16.381,76.08836271]
[1673383528236,20.0,16.394,16.382,20.0]
[1673383528459,20.0,16.395,16.382,33.30836271]
[1673383528761,45.76,16.396,16.383,92.95836271]
[1673383528972,17.0,16.395,16.384,20.0]
[1673383529195,109.8135,16.398,16.385,17.0]
[1673383529396,64.0535,16.398,16.385,72.09836271]
[1673383529606,64.0535,16.398,16.386,13.30836271]
[1673383531600,17.0,16.397,16.386,13.30836271]
[1673383531810,20.0,16.396,16.386,13.30836271]
[1673383532024,17.0,16.395,16.386,13.30836271]
[1673383532665,17.0,16.395,16.384,45.8]
[1673383532868,17.0,16.395,16.385,13.30836271]
[1673383533618,17.0,16.395,16.384,45.8]
[1673383533811,62.77,16.395,16.383,20.0]
[1673383534024,20.0,16.394,16.383,20.0]
[1673383534237,17.0,16.393,16.383,20.0]
[1673383534760,17.0,16.393,16.383,13.30836271]
[1673383535293,17.0,16.393,16.384,20.0]
[1673383535838,20.0,16.394,16.384,20.0]
[1673383536348,20.0,16.394,16.384,33.30836271]
[1673383538030,65.76,16.396,16.384,33.30836271]
[1673383538225,20.0,16.396,16.384,33.30836271]
[1673383539387,17.0,16.395,16.384,33.30836271]
[1673383539631,20.0,16.396,16.385,17.0]
[1673383540016,20.0,16.396,16.385,30.30836271]
[1673383541170,20.0,16.396,16.385,72.16836271]
[1673383542447,20.0,16.397,16.385,72.16836271]
[1673383543922,65.76,16.397,16.385,72.16836271]
[1673383544113,20.0,16.397,16.385,72.16836271]
[1673383548224,45.75,16.4,16.385,121.31437088]
[1673383548433,45.75,16.402,16.385,121.31437088]
[1673383548647,65.74,16.403,16.386,20.0]
[1673383548841,65.74,16.403,16.387,43.13]
[1673383549047,65.74,16.403,16.387,105.58437088]
[1673383549262,65.74,16.403,16.388,13.30836271]
[1673383549477,65.74,16.403,16.389,17.0]
[1673383549903,65.74,16.403,16.389,30.30836271]
[1673383553275,20.0,16.402,16.39,49.93]
[1673383553481,20.0,16.403,16.391,17.0]
[1673383553796,20.0,16.404,16.391,17.0]
[1673383553797,20.0,16.404,16.392,47.04]
[1673383554006,17.0,16.402,16.392,20.0]
[1673383554318,62.74,16.403,16.387,75.97600817]
[1673383554505,40.0,16.402,16.387,49.14600817]
[1673383554719,62.75,16.401,16.387,75.76273359]
[1673383554929,62.75,16.401,16.388,13.30836271]
[1673383554930,20.0,16.4,16.388,13.30836271]
[1673383555164,17.0,16.399,16.388,13.30836271]
[1673383557887,20.0,16.4,16.388,13.30836271]
[1673383558109,20.0,16.4,16.389,44.25]
[1673383558429,20.0,16.4,16.39,13.30836271]
[1673383558655,20.0,16.4,16.39,26.61672542]
[1673383558833,40.0,16.402,16.391,17.0]
[1673383558834,20.0,16.402,16.391,17.0]
[1673383559048,20.0,16.402,16.392,49.23]
[1673383559277,20.0,16.404,16.392,62.53836271]
[1673383559589,20.0,16.404,16.393,30.30836271]
[1673383559784,20.0,16.404,16.394,20.0]
[1673383559994,20.0,16.404,16.394,62.75836271]
[1673383560204,20.0,16.404,16.395,13.30836271]
[1673383560624,20.0,16.406,16.395,13.30836271]
[1673383560830,80.8854,16.407,16.395,13.30836271]
[1673383560831,80.8854,16.407,16.396,17.0]
[1673383561066,60.8854,16.407,16.396,47.47]
[1673383561273,60.8854,16.407,16.397,13.30836271]
[1673383561481,20.0,16.41,16.398,17.0]
[1673383561697,20.0,16.41,16.398,50.03]
[1673383561885,20.0,16.41,16.398,63.33836271]
[1673383562215,20.0,16.41,16.398,30.30836271]
[1673383562408,20.0,16.41,16.398,13.30836271]
[1673383563687,65.73,16.409,16.397,32.63]
[1673383563901,20.0,16.407,16.394,20.0]
[1673383564095,62.74,16.406,16.392,20.0]
[1673383564742,20.0,16.405,16.392,20.0]
[1673383564955,17.0,16.404,16.392,20.0]
[1673383565696,17.0,16.404,16.393,13.30836271]
[1673383565876,17.0,16.404,16.394,20.0]
[1673383566083,62.74,16.404,16.394,20.0]
[1673383566532,17.0,16.404,16.394,20.0]
[1673383567268,20.0,16.402,16.392,20.0]
[1673383567579,20.0,16.402,16.39,45.4]
[1673383567789,20.0,16.402,16.392,13.30836271]
[1673383567984,20.0,16.402,16.393,20.0]
[1673383568315,17.0,16.404,16.393,20.0]
[1673383568507,17.0,16.404,16.394,13.30836271]
[1673383569133,20.0,16.405,16.394,13.30836271]
[1673383569361,20.0,16.41,16.395,17.0]
[1673383569581,20.0,16.41,16.396,20.0]
[1673383569801,20.0,16.41,16.397,17.0]
[1673383570004,65.73,16.41,16.397,17.0]
[1673383570218,65.73,16.41,16.397,30.30836271]
[1673383570638,65.73,16.41,16.397,13.30836271]
[1673383570826,65.73,16.41,16.398,13.30836271]
[1673383572305,17.0,16.408,16.398,13.30836271]
[1673383572966,65.73,16.41,16.398,13.30836271]
[1673383574316,17.0,16.408,16.398,13.30836271]
[1673383574719,65.73,16.41,16.398,13.30836271]
[1673383576411,20.0,16.41,16.398,13.30836271]
[1673383576820,17.0,16.408,16.398,13.30836271]
[1673383580095,65.73,16.409,16.398,13.30836271]
[1673383580305,45.72,16.411,16.399,20.0]
[1673383580503,45.72,16.412,16.399,20.0]
[1673383581459,20.0,16.411,16.398,13.30836271]
[1673383581779,62.73,16.41,16.398,13.30836271]
[1673383582514,62.73,16.41,16.396,30.43]
[1673383582732,20.0,16.409,16.393,52.25]
[1673383582915,62.73,16.408,16.394,13.30836271]
[1673383583352,20.0,16.407,16.394,13.30836271]
[1673383583568,45.74,16.406,16.395,20.0]
[1673383583765,20.0,16.407,16.395,20.0]
[1673383583973,20.0,16.407,16.395,33.30836271]
[1673383584181,20.0,16.407,16.394,20.0]
[1673383584734,20.0,16.407,16.393,72.33]
[1673383584735,131.478,16.407,16.395,13.30836271]
[1673383584943,17.0,16.406,16.395,13.30836271]
[1673383586619,62.74,16.406,16.395,13.30836271]
[1673383586825,131.478,16.407,16.396,17.0]
[1673383587038,111.478,16.407,16.396,17.0]
[1673383587250,111.478,16.407,16.397,13.30836271]
[1673383587440,111.478,16.407,16.398,17.0]
[1673383587869,111.478,16.407,16.399,13.30836271]
[1673383588621,111.478,16.407,16.398,17.0]
[1673383590092,65.72,16.411,16.398,17.0]
[1673383590305,17.0,16.41,16.399,13.30836271]
[1673383590619,45.73,16.409,16.398,17.0]
[1673383590806,45.73,16.409,16.397,30.30836271]
[1673383591017,45.73,16.409,16.399,13.30836271]
[1673383591431,80.8854,16.416,16.399,13.30836271]
[1673383591432,45.72,16.413,16.401,20.0]
[1673383591648,60.8854,16.416,16.402,37.0]
[1673383591869,60.8854,16.416,16.403,38.79]
[1673383592074,60.8854,16.416,16.404,17.0]
[1673383592291,60.8854,16.416,16.405,40.71]
[1673383593441,60.8854,16.416,16.406,30.30836271]
[1673383593860,60.8854,16.416,16.407,13.30836271]
[1673383594719,20.0,16.415,16.407,13.30836271]
[1673383595139,20.0,16.415,16.405,40.71]
[1673383601754,20.0,16.415,16.406,13.30836271]
[1673383604677,17.0,16.414,16.406,13.30836271]
[1673383605417,20.0,16.415,16.406,13.30836271]
[1673383605645,20.0,16.415,16.407,17.0]
[1673383605954,20.0,16.415,16.408,13.30836271]
[1673383608674,20.0,16.415,16.404,65.74]